Cogmind - Beta 16 @@@ ROGUE MODE // 2025.11.30 @ 20:40:00 Player: lvl5hm Result: Destroyed by Y-45 Defender with Beam Rifle Performance ------------- Evolutions (0) 0 Regions Visited (3) 600 Robots Destroyed (37) 185 Value Destroyed (772) 772 Prototype IDs (13) 260 Alien Tech Used (0) 0 Bonus (0) 0 TOTAL SCORE: 1817 Bonus ------- None Cogmind --------- Core Integrity 0/250 Matter 284/300 Energy 125/125 System Corruption 0% Temperature Warm (114) Movement Rolling (115) Ox1 Location -9/Recycling Parts ------- > --- POWER (1) -------- Light Ion Engine > --- PROPULSION (2) --- Compact Wheel Compact Wheel > --- UTILITY (2) ------ High-capacity Storage Unit Hardened Light Armor Plating > --- WEAPON (2) ------- Improved Medium Laser Subdweller Machine Gun > --- INVENTORY (20) --- Meta Core Heat Sink High-capacity Matter Pod (200) High-capacity Matter Pod (200) Subdweller Optics Subdweller Optics Subdweller Optics Subdweller Optics Seismic Detector Makeshift Light Armor Plating Authchip [Processor] Authchip [Weapon] Spread Laser Spread Laser Spread Laser Beam Cannon Beam Cannon Subdweller Beam Cannon Subdweller Shrapnel Launcher Mace Peak State ------------ > --- POWER ------------ Subdweller Power Source > --- PROPULSION ------- Light Treads Light Treads > --- UTILITY ---------- High-capacity Storage Unit Medium Armor Plating > --- WEAPON ----------- Improved Medium Laser Improved Medium Laser > --- INVENTORY -------- Meta Core Heat Sink High-capacity Matter Pod Subdweller Optics Seismic Detector Seismic Detector Medium Armor Plating Medium Armor Plating Spread Laser Spread Laser Spread Laser Improved Medium Laser Improved Medium Laser Beam Cannon Beam Cannon Subdweller Machine Gun Mace [Rating: 17] Favorites ----------- Power Subdweller Power Source Engine Subdweller Power Source Propulsion Light Treads Treads Light Treads Wheel Compact Wheel Utility High-capacity Storage Unit Device Seismic Detector Storage High-capacity Storage Unit Protection Medium Armor Plating Weapon Improved Medium Laser Energy Gun Improved Medium Laser Ballistic Gun Subdweller Machine Gun Impact Weapon Mace Slashing Weapon Mining Claw Build | -11 -10 -10 -9 ------- Run | Yrd Mat Sub Rec Slots Evolved . | . . . . Power . | . . . . Propulsion . | . . . . Utility . | . . . . Weapon . | . . . . Parts Attached 34 | 8 8 14 4 Power 5 | 1 . 3 1 Engine 5 | 1 . 3 1 Core . | . . . . Reactor . | . . . . Propulsion 4 | 2 . . 2 Treads 2 | 2 . . . Leg . | . . . . Wheel 2 | . . . 2 Hover . | . . . . Flight . | . . . . Utility 11 | 2 3 5 1 Device 2 | 1 1 . . Storage 3 | 1 2 . . Processor . | . . . . Hackware . | . . . . Protection 6 | . . 5 1 Artifact . | . . . . Weapon 14 | 3 5 6 . Energy Gun 8 | . 4 4 . Energy Cannon . | . . . . Ballistic Gun 4 | 3 . 1 . Ballistic Cannon . | . . . . Launcher . | . . . . Special Weapon . | . . . . Impact Weapon 1 | . . 1 . Slashing Weapon 1 | . 1 . . Piercing Weapon . | . . . . Special Melee Weapon . | . . . . Unidentified Prototypes 1 | . 1 . . Parts Lost 13 | . . 13 . Power 4 | . . 4 . Propulsion 2 | . . 2 . Utility 4 | . . 4 . Weapon 3 | . . 3 . Highest Loss Streak 5 | . . 5 . To Critical Strikes 1 | . . 1 . Average Backups 16 | 1 8 18 19 Power . | . . . . Propulsion . | . . . . Utility 7 | . 3 8 10 Weapon 7 | . 4 8 8 Tool/Special . | . . . . Unused Backups 21 | . 4 . 17 Power 1 | . 1 . . Propulsion 2 | . . . 2 Utility 13 | . 3 . 10 Weapon 4 | . . . 4 Tool/Special 1 | . . . 1 Average Slot Usage (%) 83 | . 99 77 92 Engine 13 | . 14 13 11 Treads 10 | . 27 7 . Wheel 2 | . . . 23 Device 8 | . 14 8 . Storage 14 | . 14 14 14 Protection 5 | . . 5 14 Energy Gun 23 | . 14 26 14 Ballistic Gun 4 | . 12 . 14 Peak Build Rating 17 | 7 13 17 17 Average Rating 13 | 5 8 14 16 On Entrance 8 | . 7 13 14 Avg Prop Armor Cover (%) . | . . . . Naked Turns . | . . . . Heaviest Build 59 | 14 52 59 55 Greatest Support 40 | 40 40 40 32 Greatest Overweight (x) 19 | . 1 19 16 Average Overweight (x) 4 | . . 8 1 Largest Inventory Capacity 20 | 8 20 20 20 Average Capacity 18 | 7 15 20 20 Most Carried 20 | 2 16 20 20 Average Carried 16 | 1 8 18 19 Final Capacity 20 | 8 20 20 20 Final Carried 20 | 2 16 18 20 Class Distribution -------------------- 92% | Mutant 7% | Scavenger-Mutant Dominant Class ---------------- Mutant | -10/Materials Mutant | -10/Subcaves Scavenger-Mutant | -9/Recycling Resources | -11 -10 -10 -9 ----------- Run | Yrd Mat Sub Rec Matter Collected 1330 | 324 470 300 236 Remotely . | . . . . Salvage Created 1670 | 149 592 444 485 Parts 77 | 8 34 21 14 Haulers Intercepted 1 | . 1 . . Recyclers Shooed 2 | . . . 2 Parts Field Recycled . | . . . . Retrieved Matter . | . . . . Parts Self-Destructed 13 | . . 13 . Prevented . | . . . . Parts Restored . | . . . . Kills | -11 -10 -10 -9 ------- Run | Yrd Mat Sub Rec Combat Hostiles Destroyed 20 | . 9 11 . Guns 19 | . 9 10 . Classes Destroyed 9 | 2 5 2 . Builder 1 | . 1 . . Tunneler 3 | 3 . . . Hauler 1 | . 1 . . Recycler 8 | 1 2 . 5 Operator 2 | . 2 . . Turret 2 | . . 2 . Swarmer 6 | . 2 4 . Grunt 7 | . 7 . . Subdweller 7 | . . 7 . Best Kill Streak 4 | 2 3 4 3 Combat Bots Only 4 | . 2 4 . Max Kills in Single Turn 1 | 1 1 1 1 Gunslinging . | . . . . Exploded . | . . . . Melee . | . . . . Uniques/NPCs Destroyed . | . . . . Combat | -11 -10 -10 -9 -------- Run | Yrd Mat Sub Rec Hostile Shots Fired 210 | . 40 167 3 Missed 55 | . 11 44 . Hits 155 | . 29 123 3 Projectile 155 | . 29 123 3 Critical Strikes 5 | . . 4 1 Damage Taken 2100 | . 348 1710 42 Core 254 | . 51 188 15 Absorbed by Shields . | . . . . Regen/Repaired (Parts) 125 | . 125 . . Core Remaining (%) 100 | 100 . . . Volleys Fired 141 | 11 48 67 15 Largest 2 | 2 2 2 2 Hottest 130 | 40 130 130 86 Shots Fired 273 | 22 96 134 21 Gun 273 | 22 96 134 21 Cannon . | . . . . Launcher . | . . . . Special . | . . . . Kinetic 115 | 22 80 7 6 Thermal 158 | . 16 127 15 Explosive . | . . . . Electromagnetic . | . . . . Robot Hit Streak 41 | 4 8 41 10 Robot Miss Streak 7 | 2 7 4 2 Penetration Max . | . . . . Secondary Targets 6 | . 2 4 . Max Gunslinging Chain 1 | . 1 1 . Shots Hit Robots 207 | 12 61 116 18 Core Hits 85 | 6 36 37 6 Critical Kills . | . . . . Critical Parts Destroyed . | . . . . Critical Strikes 12 | . . 10 2 Burn 12 | . . 10 2 Melee Attacks 8 | . 2 6 . Impact 6 | . . 6 . Slashing 2 | . 2 . . Piercing . | . . . . Sneak Attacks . | . . . . Combat Hostiles . | . . . . Follow-up Attacks . | . . . . Damage Inflicted 3063 | 124 668 1949 322 Guns 3033 | 124 668 1919 322 Cannons . | . . . . Explosions . | . . . . Melee 30 | . . 30 . Ramming . | . . . . Kinetic 819 | 124 517 74 104 Thermal 2214 | . 151 1845 218 Explosive . | . . . . Electromagnetic . | . . . . Impact 30 | . . 30 . Slashing . | . . . . Piercing . | . . . . Highest Corruption . | . . . . Average Corruption . | . . . . Corruption Purged . | . . . . Corruption Blocked . | . . . . Overload Shots . | . . . . Overflow Damage . | . . . . Projectiles . | . . . . Explosions . | . . . . Melee . | . . . . Knockbacks 1 | . . 1 . Impact 1 | . . 1 . Kinetic . | . . . . Secondary . | . . . . Self-Inflicted Damage . | . . . . Shots . | . . . . Rammed . | . . . . Targets Rammed . | . . . . Kicked . | . . . . Crushed . | . . . . Highest Temperature 105 | . 78 15 105 Average Temperature 22 | . 23 5 34 Received Heat Transfer 540 | . 162 342 36 Siege Activations . | . . . . Martial Activations . | . . . . Shielding Activations . | . . . . Robots Disrupted . | . . . . Combat Hostiles . | . . . . Robots Corrupted . | . . . . Combat Hostiles . | . . . . Parts Fried . | . . . . Impact Corruptions . | . . . . Robots Melted 1 | . . 1 . Combat Hostiles 1 | . . 1 . Parts Melted 7 | . . 6 1 Heat Transferred 5366 | . 214 4523 629 Parts Sabotaged . | . . . . Parts Stolen . | . . . . Parts Stripped . | . . . . Power Chain Reactions . | . . . . Alert | -11 -10 -10 -9 ------- Run | Yrd Mat Sub Rec Maximum Alert Level . | . . . . Low Security (%) 100 | 100 100 . 100 Level 1 . | . . . . Level 2 . | . . . . Level 3 . | . . . . Level 4 . | . . . . Level 5 . | . . . . High Security . | . . . . Max Security . | . . . . Peak Influence 110 | 10 110 . 31 Initial 19 | . . . 19 Average 20 | . 30 . 4 Influence Increases 586 | 20 320 150 96 Destroy 0b10 Robot/C 300 | . 180 120 . Destroy 0b10 Robot/NC 80 | 20 30 . 30 Destroy Leader 42 | . 42 . . Successful Hack 27 | . 22 . 5 Select Force Hacks 60 | . . . 60 Destroy Structure 2 | . 1 . 1 Lose Combat Pursuer 75 | . 45 30 . Influence Decreases 586 | 20 320 110 136 Entered New Map 21 | . . . 21 Time Decay 555 | 20 320 100 115 Lost Part 10 | . . 10 . Squads Dispatched 2 | . 2 . . Investigation . | . . . . Extermination . | . . . . Reinforcement 2 | . 2 . . Assault . | . . . . Garrison . | . . . . Intercept . | . . . . Searches Triggered . | . . . . Construction Impeded . | . . . . Haulers Reinforced . | . . . . Active Scanning Responses . | . . . . Cargo Convoy Interrupts . | . . . . Stealth | -11 -10 -10 -9 --------- Run | Yrd Mat Sub Rec Distress Signals 2 | . 2 . . Communications Jammed . | . . . . Distress Signals . | . . . . Times Spotted 44 | . 28 15 1 Peak Tracking Total 6 | . 3 6 . Tactical Retreats 3 | . 2 1 . Traps | -11 -10 -10 -9 ------- Run | Yrd Mat Sub Rec Traps Triggered 1 | . 1 . . Indirectly . | . . . . Trap Hack Attempts . | . . . . Triggered . | . . . . Disarmed . | . . . . Reprogrammed . | . . . . Reused . | . . . . Traps Extracted . | . . . . Installed . | . . . . Triggered . | . . . . Machines | -11 -10 -10 -9 ---------- Run | Yrd Mat Sub Rec Machines Disabled 2 | . . 2 . Max in Single Turn 1 | . . 1 . Machines Repaired . | . . . . Machines Dismantled . | . . . . Machines Sabotaged . | . . . . Overloaded Fab Kills . | . . . . Hacking | -11 -10 -10 -9 --------- Run | Yrd Mat Sub Rec Machines Accessed 11 | . 6 2 3 Terminals 6 | . 5 . 1 Fabricators . | . . . . Repair Stations 1 | . 1 . . Recycling Units 2 | . . . 2 Scanalyzers . | . . . . Garrison Access . | . . . . Total Hacks 26 | . 15 5 6 Successful 20 | . 11 5 4 Failed 6 | . 4 . 2 Catastrophic 1 | . 1 . . Database Lockouts . | . . . . Manual 14 | . 9 . 5 Terminals 13 | . 11 . 2 Fabricators . | . . . . Repair Stations 4 | . 4 . . Recycling Units 4 | . . . 4 Scanalyzers . | . . . . Garrison Access . | . . . . Terminal Hacks 11 | . 5 5 1 Record 4 | . . 4 . Part Schematic 3 | . 3 . . Robot Analysis 1 | . 1 . . Locate Traps 1 | . 1 . . Zone Layout 1 | . . . 1 Proto ID Catalog 1 | . . 1 . Fabricator Hacks . | . . . . Repair Station Hacks 4 | . 4 . . Scan Component 2 | . 2 . . Repair 2 | . 2 . . Recycling Unit Hacks . | . . . . Scanalyzer . | . . . . Garrison Access Hacks . | . . . . Unauthorized Hacks 5 | . 2 . 3 Terminals 3 | . 2 . 1 Botnet 3 | . 2 . 1 Fabricators . | . . . . Repair Stations . | . . . . Recycling Units 2 | . . . 2 Tunnel 2 | . . . 2 Scanalyzers . | . . . . Garrison Access . | . . . . Data Cores Recovered 1 | . 1 . . Used 1 | . 1 . . Hacking Detections 5 | . 4 . 1 Full Trace Events . | . . . . Feedback Events . | . . . . Feedback Blocked . | . . . . Robot Schematics Acquired . | . . . . Robots Built . | . . . . Authchips . | . . . . Time . | . . . . Total Robot Build Rating . | . . . . Part Schematics Acquired 3 | . 3 . . Parts Built . | . . . . Authchips . | . . . . Time . | . . . . Total Part Build Rating . | . . . . Part Studies Acquired . | . . . . Parts Repaired 2 | . 2 . . Time 52 | . 52 . . Parts Recycled . | . . . . Recycled Matter . | . . . . Retrieved Matter . | . . . . Retrieved Components . | . . . . Parts Scanalyzed . | . . . . Part Schematics Acquired . | . . . . Parts Damaged . | . . . . Bothacking | -11 -10 -10 -9 ------------ Run | Yrd Mat Sub Rec Used RIF Installer . | . . . . Robots Hacked . | . . . . Non-combat . | . . . . Combat . | . . . . Robot Hacks Applied . | . . . . Relay Couplers Released . | . . . . Fabnet Peak Effective % . | . . . . Robots Rewired . | . . . . Allies Hacked . | . . . . Hacks Repelled . | . . . . Allies | -11 -10 -10 -9 -------- Run | Yrd Mat Sub Rec Total Allies . | . . . . Largest Group . | . . . . Highest-Rated Group . | . . . . Highest-Rated Ally . | . . . . Total Orders . | . . . . Ally Attacks . | . . . . Total Damage . | . . . . Kills . | . . . . Allies Corrupted . | . . . . Allies Melted . | . . . . Intel | -11 -10 -10 -9 ------- Run | Yrd Mat Sub Rec Active Infowar (turns) 3560 | 57 499 3004 . Seismic 3560 | 57 499 3004 . Robot Analysis Total 1 | . 1 . . Derelict Logs Recovered 2 | . . 2 . Drone Launches . | . . . . Drone Recoveries . | . . . . Exploration | -11 -10 -10 -9 ------------- Run | Yrd Mat Sub Rec Turns Passed 7532 | 140 1432 5241 719 Spaces Moved 2032 | 62 567 901 502 Core 412 | 2 . 398 12 Treads 1130 | 60 567 503 . Legs . | . . . . Wheels 490 | . . . 490 Hover . | . . . . Flight . | . . . . Fastest Speed 50 | 50 160 240 115 Average Speed 335 | 156 195 548 132 Slowest Speed 1000 | 160 240 1000 850 Overloaded Moves . | . . . . Propulsion Burnouts . | . . . . Robots Hopped . | . . . . Potential Cave-ins . | . . . . Cave-ins Triggered . | . . . . Exploration Rate (%) 54 | 5 93 37 83 Regions Visited 3 Branch Regions 2 Pre-discovered Areas 3 | . . 1 2 Known Exits Taken . | . . . . Unknown Exits Taken 3 | 1 1 1 . Scrap Searched 4 | . . 4 . Spaces Dug 1 | . 1 . . Terrain Destroyed 2 | . 1 . 1 Melee 1 | . 1 . . Projectile 1 | . . . 1 AOE . | . . . . Terrain Rammed . | . . . . Walls Destroyed . | . . . . Machines Disabled . | . . . . Actions | -11 -10 -10 -9 --------- Run | Yrd Mat Sub Rec Total 2466 | 81 795 1056 534 Wait 185 | . 141 41 3 Move 2029 | 61 566 900 502 Hop . | . . . . Pick Up 35 | 1 18 10 6 Fast Attach 16 | 7 4 2 3 Attach 8 | . . 8 . Detach . | . . . . Swap 32 | 1 9 21 1 Drop 12 | . 7 1 4 Fire 141 | 11 48 67 15 Melee 8 | . 2 6 . Ram . | . . . . Kick . | . . . . Crush . | . . . . Escape Stasis . | . . . . Rewire . | . . . . Trap . | . . . . Miscellaneous . | . . . . Route ------- -11/Scrapyard -10/Materials (discovered 5 exits: [*Mat x3] / [*Min] / *Sub) -10/Subcaves (discovered 2 exits: [*Mat] / *Rec) -9/Recycling History --------- Turn | Location | Event 15 | -11/Scrapyard | Discovered new exit (range 16) 141 | -11/Scrapyard | Entered Materials 313 | -10/Materials | Build established: Mutant 834 | -10/Materials | Discovered new exit (range 13) 931 | -10/Materials | Discovered new exit (range 11) 1131 | -10/Materials | Discovered new exit (range 7) 1268 | -10/Materials | Repaired Lgt. Treads 1295 | -10/Materials | Repaired Lgt. Treads 1447 | -10/Materials | Discovered new exit (range 15) 1547 | -10/Materials | Discovered new exit (range 12) 1573 | -10/Materials | Entered Subcaves 1798 | -10/Subcaves | Shifting Twisted Machinery released Flamer 1997 | -10/Subcaves | Visited 4L-MR0's lab 2026 | -10/Subcaves | Found Meta Core 2178 | -10/Subcaves | Learned location of Zion (-6) 2449 | -10/Subcaves | Visited Clippyterm 2456 | -10/Subcaves | Learned 40 Factory zone layouts 2963 | -10/Subcaves | Core integrity fell below 50% 2999 | -10/Subcaves | Lost 5 parts (1p2n1u1w) 4424 | -10/Subcaves | Learned Materials trap positions 4568 | -10/Subcaves | Discovered new exit (range 14) 4624 | -10/Subcaves | Shifting Twisted Machinery released Mak. Light Armor Plating 4642 | -10/Subcaves | Shifting Twisted Machinery released Mak. Light Armor Plating 5878 | -10/Subcaves | Lost 3 parts (1u2w) 6168 | -10/Subcaves | Shifting Twisted Machinery released Flamer 6680 | -10/Subcaves | Discovered new exit (range 14) 6681 | -10/Subcaves | Core integrity fell below 20% 6814 | -10/Subcaves | Entered Recycling 7226 | -9/Recycling | Build established: Scavenger-Mutant 7533 | -9/Recycling | Destroyed by Y-45 Defender with Beam Rifle Last Messages --------------- 07389_ R-06 Scavenger destroyed. 07391_ R-06 Scavenger collects Sml. Storage Unit. 07393_ Acquired 2 matter. 07394_ R-06 Scavenger collects Com. Wheel. 07409_ Acquired 2 matter. 07413_ R-06 Scavenger suffers critical hit (Burn). 07413_ R-06 Scavenger destroyed. 07416_ Acquired 2 matter. 07417_ R-06 Scavenger collects Com. Wheel. 07436_ R-06 Scavenger inserts Sml. Storage Unit into recycling unit. 07439_ R-06 Scavenger inserts Com. Wheel into recycling unit. 07449_ Connecting with Recycling Unit... >>Force(Tunnel) DISCOVERED[-7/Factory] 07528_ Y-45 Defender springs to life. 07530_ Critical hit (Burn: +37). Map ----- +----------------------------------------------------+ | ## #??????????????????????????????????? | | + #??????????????????????????????????? | | ## #??????????????????????????????????? | | ## #??????????????????????????????????? | | ## #??????????????????????????????????? | | ## #??????????????????????????????????? | | ## #??????????????????????????????????? | | ## #??????????????????????????????????? | | ## #??????????????????????????????????? | | ## #??????????????????????????????????? | | ########+##+###??????????????????????????????????? | | #????????????????????????????????????? | | #????????????????????????????????????? | | #????????????????????????????????????? | | #????????????????????????????????????? | | #????????????????????????????????????? | | ############?????????????????????????? | | # #?????????????????????????? | | # #?????????????????????????? | | ####### + """ #?????????# ?????????????? | | ??????# # """""#?????????# ?????????????? | | ####### # """""#???????### ?#???????????? | | # # """""######### # #???????????? | | " # # """ # Y #???????????? | | "" # # + u ????????? | | "" + # """ # @ #???????????? | | "" # # """""############+##???????????? | | " # # """""#?????# ?????????????? | | # # """""#?????# ?????????????? | | # # """ #?????# ?????????????? | | #+###+# # #?????# ?????????????? | | #?? ##### + #?????# ?????????????? | | #?# #???# ############?????# ?????????????? | | #?# ##### #?????#"""#??????# ?????????????? | | #?# #??####"T"###????# ?????????????? | | ### #??# #????# ?????????????? | | """ #### T ##???# ?????????????? | | """ + T#???# ?????????????? | | """ # ##???# ?????????????? | | """ # #????#######?????????????? | | """ + """ #????????????????????????? | | ## """ #????????????????????????? | | ## """ #????????????????????????? | | """ ## #????????????????????????? | | """ ####+##+###????????????????????????? | | """ ## ###????????????????????????? | | """ ## !!#????????????????????????? | | """ ## !!#????????????????????????? | | ## !!#????????????????????????? | | ## ###????????????????????????? | +----------------------------------------------------+ Best States ------------- Heat Dissipation 35 Energy Generation 15 Energy Capacity 250 Matter Stores 300 Matter Capacity 300 Sight Range 16 Terrain Scan Density 10 Armor Coverage 225 Evasion (%) 40 Recoil Reduction 2 Authchip Count 2 Item Schematics ----------------- Seismic Detector | -10/Materials | Hacked Assault Rifle | -10/Materials | Hacked Signal Interpreter | -10/Materials | Hacked Robot Schematics ------------------ None Fabricated ------------ Nothing Repaired ---------- Lgt. Treads | 39% | -10/Materials Lgt. Treads | 71% | -10/Materials Studied --------- None Alien Tech Used ----------------- None Achievements -------------- None Challenges ------------ None Game ------ Seed CatalystBoreTube Manual? 0 Play Time 00:24:39 Cumulative 252.6 hours Start 2025.11.29 @ 20:06:11 End 2025.11.30 @ 20:40:00 Sessions 4 Manual Loads 0 Difficulty Rogue Special Mode None Game No. 186 Rogue 186 Adventurer 0 Explorer 0 Win Type - Total 11 Types 6/0/2/1/0/0/0/1/0/1 Lore% 67 Gallery% 74 Achievement% 67 Wizard Run 0 Options --------- Layout 2 ASCII 0 Keyboard 1 Movement Vi Keybinds 0 Fullscreen 1 Font 32/Tamsyn Map View 50x44 Zoom Use 0% Tactical HUD 1 Map Filters NONE Filters NONE Steam 1 RUN: 79c91134-d384-496b-bfbe-6b12ca8d8ed1